bitfinex-derivatives/quotes_BTCF0:USTF0_20250903
["timestamp","ask_amount","ask_price","bid_price","bid_amount"]
[1756864240211,0.002,111070.0,111060.0,1.8348783]
[1756864241512,0.002,111070.0,111060.0,1.48429565]
[1756864241914,0.002,111070.0,111060.0,1.39425935]
[1756864243520,0.002,111070.0,111060.0,3.13833935]
[1756864245018,0.001,111070.0,111060.0,3.13833935]
[1756864245320,0.002,111070.0,111060.0,3.14033935]
[1756864246119,0.002,111070.0,111060.0,3.96313935]
[1756864247423,0.002,111070.0,111060.0,4.05317535]
[1756864248121,0.002,111070.0,111060.0,3.23037535]
[1756864248320,0.002,111070.0,111060.0,4.403718]
[1756864250419,0.02283,111090.0,111080.0,0.02491]
[1756864250624,0.02273,111090.0,111080.0,2.2290753]
[1756864251822,0.05858,111090.0,111080.0,2.2300753]
[1756864252022,0.06158,111090.0,111080.0,2.2355753]
[1756864252716,0.06158,111090.0,111080.0,1.4128553]
[1756864252922,0.06158,111090.0,111080.0,2.2355753]
[1756864253626,0.05958,111090.0,111080.0,2.2345753]
[1756864253824,0.02573,111090.0,111080.0,2.2345753]
[1756864254027,0.02273,111090.0,111080.0,2.2335753]
[1756864254328,0.001,111090.0,111080.0,2.2345753]
[1756864255623,0.02308201,111090.0,111080.0,2.2345753]
[1756864256021,0.001,111090.0,111080.0,2.2345753]
[1756864256620,0.02308784,111090.0,111080.0,2.2345753]
[1756864257125,0.02308784,111090.0,111080.0,3.9783753]
[1756864257920,0.001,111090.0,111080.0,3.9783753]
[1756864258120,0.001,111090.0,111080.0,4.0683959]
[1756864258327,0.001,111090.0,111080.0,3.2456759]
[1756864258625,0.001,111090.0,111080.0,4.0683159]
[1756864258927,0.001,111090.0,111080.0,3.2456759]
[1756864259123,0.001,111090.0,111080.0,4.0683159]
[1756864260018,0.001,111090.0,111080.0,3.1556553]
[1756864260223,0.001,111090.0,111080.0,3.9782953]
[1756864260422,0.001,111090.0,111080.0,3.1556553]
[1756864260830,0.03485,111090.0,111080.0,3.9782953]
[1756864261229,0.001,111090.0,111080.0,3.9782953]
[1756864261735,0.001,111090.0,111080.0,3.7144953]
[1756864262229,0.02315528,111090.0,111080.0,3.7144953]
[1756864262429,0.001,111090.0,111080.0,3.7144953]
[1756864262630,0.001,111090.0,111080.0,3.7144553]
[1756864262830,0.001,111090.0,111080.0,3.01329]
[1756864263128,0.03485,111090.0,111080.0,2.8918553]
[1756864263324,0.05700528,111090.0,111080.0,3.7144553]
[1756864263524,0.05700528,111090.0,111080.0,3.7149353]
[1756864266132,0.02315528,111090.0,111080.0,3.7149353]
[1756864267625,0.02315528,111090.0,111080.0,3.9787353]
[1756864271828,0.02315528,111090.0,111080.0,4.0687559]
[1756864275734,0.02315528,111090.0,111080.0,4.3187559]
[1756864275938,0.0001,111110.0,111100.0,0.09594]
[1756864276230,0.02508,111120.0,111110.0,0.08174]
[1756864276434,0.0001,111120.0,111110.0,1.2429016]
[1756864277024,0.0001,111120.0,111110.0,1.25181035]
[1756864277225,0.0001,111140.0,111130.0,0.08174]
[1756864277438,0.08548,111140.0,111130.0,1.61238574]
[1756864277832,0.08548,111140.0,111130.0,0.82328574]
[1756864278033,0.33548,111140.0,111130.0,1.61262574]
[1756864278227,0.33548,111140.0,111130.0,1.64700574]
[1756864278637,0.33948,111140.0,111130.0,1.64800574]
[1756864279339,0.33948,111140.0,111130.0,1.29742309]
[1756864279543,0.33948,111140.0,111130.0,1.64800574]
[1756864280042,0.33948,111140.0,111130.0,1.29742309]
[1756864280235,0.34148,111140.0,111130.0,1.64896574]
[1756864281236,0.34148,111140.0,111130.0,1.72061518]
[1756864283439,0.006,111140.0,111130.0,1.72061518]
[1756864283640,0.04205,111140.0,111130.0,1.72061518]
[1756864285038,0.006,111140.0,111130.0,1.72061518]
[1756864285445,0.006,111140.0,111130.0,1.89485731]
[1756864287740,0.006,111140.0,111130.0,1.3335897]
[1756864287944,0.006,111140.0,111130.0,4.1540697]
[1756864288543,0.006,111140.0,111130.0,4.2440498]
[1756864291444,0.006,111140.0,111130.0,4.2485398]
[1756864292249,0.0001,111160.0,111130.0,4.2141598]
[1756864292541,0.02498,111160.0,111150.0,0.62076478]
[1756864292741,0.08548,111170.0,111160.0,0.08174]
[1756864292943,0.10745218,111170.0,111160.0,0.89897717]
[1756864293141,0.10745218,111170.0,111160.0,0.63656478]
[1756864293342,0.04695218,111170.0,111160.0,0.89897717]
[1756864294249,0.07140218,111170.0,111160.0,0.86897717]
[1756864294643,0.07140218,111170.0,111160.0,0.87791026]
[1756864294843,0.07140218,111170.0,111160.0,1.25791026]
[1756864294844,0.10745218,111170.0,111160.0,1.25791026]
[1756864295148,0.04943,111170.0,111160.0,1.25791026]
[1756864295345,0.07139262,111170.0,111160.0,0.88791026]
[1756864295649,0.08548,111180.0,111170.0,0.08174]
[1756864295836,0.08548,111180.0,111170.0,0.63656478]
[1756864295837,0.1074439,111180.0,111170.0,0.63656478]
[1756864296042,0.1075439,111180.0,111170.0,0.63656478]
[1756864297643,0.1125439,111180.0,111170.0,0.63756478]
[1756864298144,0.1185439,111180.0,111170.0,0.63856478]
[1756864300847,1.26336868,111180.0,111170.0,0.032]
[1756864301052,1.26150584,111180.0,111170.0,0.002]
[1756864301250,1.26150584,111180.0,111170.0,0.71896]
[1756864301445,1.26150584,111180.0,111170.0,0.002]
[1756864301645,1.63386028,111180.0,111160.0,0.0001]
[1756864301850,1.63386028,111180.0,111140.0,0.32929488]
[1756864301851,0.08342,111150.0,111140.0,0.32929488]
[1756864302051,0.36779629,111150.0,111140.0,1.25008488]
[1756864302253,0.36779629,111150.0,111140.0,0.40267239]
[1756864302555,0.36779629,111150.0,111140.0,1.22879239]
[1756864302946,0.36779629,111150.0,111140.0,0.96638]
[1756864303142,0.36779629,111150.0,111140.0,1.22879239]
[1756864303942,0.36979629,111150.0,111140.0,1.22879239]
[1756864304550,0.36979629,111150.0,111140.0,0.40267239]
[1756864304756,0.37179629,111150.0,111140.0,1.22979239]
[1756864305761,0.38087751,111150.0,111140.0,1.22979239]
[1756864306456,0.1093839,111150.0,111140.0,1.22979239]
[1756864306655,0.37179629,111150.0,111140.0,1.22979239]
[1756864307661,0.37179629,111150.0,111140.0,1.22951239]
[1756864307852,0.37179629,111150.0,111140.0,1.23400239]
[1756864308860,0.71179629,111150.0,111140.0,1.23400239]
[1756864309055,0.37179629,111150.0,111140.0,1.23400239]
[1756864309471,0.38076344,111150.0,111140.0,1.23400239]
[1756864309867,0.10943564,111150.0,111140.0,1.23400239]
[1756864310167,0.07266564,111150.0,111140.0,1.49641478]
[1756864310570,0.10943564,111150.0,111140.0,1.49641478]
[1756864311165,0.02601564,111150.0,111140.0,1.49641478]
[1756864311560,0.02601564,111150.0,111140.0,2.00882717]
[1756864311760,0.02601564,111150.0,111140.0,1.94882717]
[1756864314474,0.10943564,111150.0,111140.0,0.91155]
[1756864314674,0.10943564,111150.0,111140.0,1.43637478]
[1756864314862,0.10943564,111150.0,111140.0,1.43625478]
[1756864315173,0.10943564,111150.0,111140.0,1.43764239]
[1756864315374,0.10943564,111150.0,111140.0,1.70005478]
[1756864316468,0.10943564,111150.0,111140.0,0.87437478]
[1756864316676,0.02601564,111150.0,111140.0,1.70009478]
[1756864318478,0.02601564,111150.0,111140.0,0.87437478]
[1756864318676,0.07266564,111150.0,111140.0,1.70041478]
[1756864318977,0.02601564,111150.0,111140.0,1.70041478]
[1756864321277,0.02601564,111150.0,111140.0,1.17559]
[1756864321475,0.02611564,111150.0,111140.0,2.27282717]
[1756864321674,0.02611564,111150.0,111140.0,1.96282717]
[1756864321877,0.02611564,111150.0,111140.0,2.28282717]
[1756864322078,0.02611564,111150.0,111140.0,2.53282717]
[1756864322273,0.02611564,111150.0,111140.0,2.27041478]
[1756864322480,0.0041,111150.0,111140.0,2.53282717]
[1756864323482,0.0041,111150.0,111140.0,2.27041478]
[1756864323874,0.0041,111150.0,111140.0,2.53282717]
[1756864326685,0.0041,111150.0,111140.0,1.70678717]
[1756864326887,0.0041,111150.0,111140.0,1.81369478]
[1756864327185,0.0041,111150.0,111140.0,2.04369478]
[1756864331289,0.0041,111150.0,111140.0,2.05337478]
[1756864331584,0.0041,111150.0,111140.0,0.87437478]
[1756864331890,0.0041,111150.0,111140.0,2.05333478]
[1756864332384,0.02618746,111150.0,111140.0,2.05333478]
[1756864334291,0.0041,111150.0,111140.0,2.05333478]
[1756864335986,0.0041,111150.0,111140.0,1.22437478]
[1756864336190,0.0041,111150.0,111140.0,2.04273478]
[1756864338489,0.0041,111150.0,111140.0,2.30514717]
[1756864339389,0.0031,111150.0,111140.0,2.04273478]
[1756864340192,0.0021,111150.0,111140.0,2.04273478]
[1756864346799,0.0021,111150.0,111140.0,1.51791]
[1756864347099,0.33523,111150.0,111140.0,0.45955]
[1756864347294,0.35740459,111150.0,111140.0,1.81377478]
[1756864347606,0.35740459,111150.0,111140.0,1.63926911]
[1756864348199,0.35740459,111150.0,111140.0,0.80946911]
[1756864348502,0.35740459,111150.0,111140.0,1.63926911]
[1756864348798,0.35740459,111150.0,111140.0,1.63918911]
[1756864350902,0.35740459,111150.0,111140.0,0.80946911]
[1756864351091,0.35740459,111150.0,111140.0,1.63878911]
[1756864352800,0.35740459,111150.0,111140.0,1.63874911]
[1756864353397,0.35740459,111150.0,111140.0,1.53874911]
[1756864354104,0.35740459,111150.0,111140.0,0.70946911]
[1756864354308,0.35740459,111150.0,111140.0,1.53850911]
[1756864354496,0.32095459,111150.0,111140.0,1.53850911]
[1756864355004,0.35740459,111150.0,111140.0,1.53850911]
[1756864356001,0.32095459,111150.0,111140.0,1.53850911]
[1756864356507,0.7073237,111150.0,111140.0,0.08575]
[1756864356701,0.7073237,111150.0,111140.0,0.91487]
[1756864359411,0.35740459,111150.0,111140.0,0.91487]
[1756864363217,0.35740459,111150.0,111140.0,1.26478911]
[1756864363714,0.35740459,111150.0,111140.0,0.91487]
[1756864363910,0.35740459,111150.0,111140.0,1.26478911]
[1756864364810,0.35740459,111150.0,111140.0,0.91487]
[1756864366012,0.02427459,111150.0,111140.0,1.26478911]
[1756864368508,0.02427459,111150.0,111140.0,1.51478911]
[1756864368709,0.0021,111150.0,111140.0,1.51478911]
[1756864369711,0.0021,111150.0,111140.0,1.53478911]
[1756864370507,0.08543,111150.0,111140.0,1.28422911]
[1756864370810,0.08543,111150.0,111140.0,1.63422911]
[1756864371004,0.0021,111150.0,111140.0,1.63422911]
[1756864371404,0.0021,111150.0,111140.0,0.71955]
[1756864371604,0.0021,111150.0,111140.0,1.52794911]
[1756864372514,0.0021,111150.0,111140.0,1.52802911]
[1756864374620,0.02593,111150.0,111140.0,0.69946911]
[1756864374815,0.02593,111150.0,111140.0,1.52798911]
[1756864375121,0.0021,111150.0,111140.0,1.52798911]
[1756864375316,0.0021,111150.0,111140.0,1.54798911]
[1756864376508,0.02426718,111150.0,111140.0,1.54798911]
[1756864378621,0.02426718,111150.0,111140.0,1.19807]
[1756864378819,0.02426718,111150.0,111140.0,1.54798911]
[1756864381330,0.07204718,111150.0,111140.0,0.71946911]
[1756864381625,0.10759718,111150.0,111140.0,1.90710911]
[1756864383417,0.04809718,111150.0,111140.0,1.90710911]
[1756864383725,0.02426718,111150.0,111140.0,1.90710911]
[1756864385124,0.02426718,111150.0,111140.0,1.52710911]
[1756864386022,0.02426718,111150.0,111140.0,1.58710911]
[1756864386427,0.04809718,111150.0,111140.0,1.52722911]
[1756864386630,0.04809718,111150.0,111140.0,1.87722911]
[1756864387128,0.02426718,111150.0,111140.0,1.87722911]
[1756864388623,0.02426718,111150.0,111140.0,1.52731]
[1756864388823,0.02426718,111150.0,111140.0,1.87722911]
[1756864390726,0.02426718,111150.0,111140.0,1.52731]
[1756864391028,0.02426718,111150.0,111140.0,1.87722911]
[1756864393230,0.02426718,111150.0,111140.0,1.83918911]
[1756864394833,0.02426718,111150.0,111140.0,1.57538911]
[1756864400336,0.0021,111150.0,111140.0,1.57538911]
[1756864404135,0.0021,111150.0,111140.0,1.83918911]
[1756864406035,0.0243017,111150.0,111140.0,1.83918911]
[1756864409440,0.0243017,111150.0,111140.0,2.2762981]
[1756864411540,0.0243017,111150.0,111140.0,1.4465781]
[1756864411744,0.0243017,111150.0,111140.0,2.0118354]
[1756864414243,0.0243017,111150.0,111140.0,2.2741781]
[1756864416045,0.0021,111150.0,111140.0,2.2741781]
[1756864416249,0.0021,111150.0,111140.0,1.48715]
[1756864416445,0.0021,111150.0,111140.0,2.2741781]
[1756864417756,0.0001,111170.0,111160.0,0.0822]
[1756864417942,0.02219351,111180.0,111160.0,1.6975881]
[1756864418148,0.08875,111180.0,111170.0,0.6068854]
[1756864418360,0.14832351,111180.0,111170.0,0.61582923]
[1756864418758,0.14832351,111180.0,111170.0,0.09114383]
[1756864418957,0.14832351,111180.0,111170.0,0.61582923]
[1756864419154,0.11394351,111180.0,111170.0,0.61582923]
[1756864419355,0.11394351,111180.0,111170.0,0.09563383]
[1756864419557,0.14832351,111180.0,111170.0,0.62031923]
[1756864419865,0.15532351,111180.0,111170.0,0.62131923]
[1756864420967,0.02919351,111180.0,111170.0,0.88511923]
[1756864421165,0.02919351,111180.0,111170.0,0.96511923]
[1756864421361,0.007,111180.0,111170.0,0.96511923]
[1756864421769,0.007,111180.0,111170.0,1.21511923]
[1756864422366,0.007,111180.0,111170.0,1.21411923]
[1756864422367,0.002,111180.0,111170.0,1.21411923]
[1756864422669,0.004,111180.0,111170.0,1.21511923]
[1756864425571,0.004,111180.0,111170.0,1.7168954]
[1756864425864,0.08805,111180.0,111170.0,1.7945127]
[1756864426069,0.08805,111180.0,111170.0,1.7168154]
[1756864426271,0.08805,111180.0,111170.0,2.0868154]
[1756864427672,0.08805,111180.0,111170.0,1.7167754]
[1756864427873,0.05067,111180.0,111170.0,2.0267754]
[1756864428574,0.004,111180.0,111170.0,2.0267754]
[1756864432468,0.004,111180.0,111170.0,2.0262954]
[1756864432671,0.004,111180.0,111170.0,2.047005]
[1756864433075,0.004,111180.0,111170.0,1.5223196]
[1756864433269,0.004,111180.0,111170.0,2.047005]
[1756864435178,0.004,111180.0,111170.0,1.727005]
[1756864435770,0.004,111180.0,111170.0,1.2023196]
[1756864435970,0.004,111180.0,111170.0,1.728845]
[1756864436165,0.02747,111180.0,111170.0,0.896885]
[1756864436370,0.6003927,111180.0,111170.0,0.35149]
[1756864436578,0.62261028,111180.0,111170.0,1.1823527]
[1756864436765,0.36026758,111180.0,111170.0,1.1824727]
[1756864436970,0.62261028,111180.0,111170.0,1.1824727]
[1756864437674,0.88495298,111180.0,111170.0,0.92013]
[1756864437880,0.62261028,111180.0,111170.0,1.1824727]
[1756864438072,0.62261028,111180.0,111170.0,0.3500327]
[1756864438266,0.62261028,111180.0,111170.0,1.1823927]
[1756864439182,0.37261028,111180.0,111170.0,0.3500327]
[1756864439381,0.37261028,111180.0,111170.0,1.1820027]
[1756864440273,0.68261028,111180.0,111170.0,0.3499227]
[1756864440584,1.19495298,111180.0,111170.0,0.83753]
[1756864440882,1.24311689,111180.0,111170.0,0.86113]
[1756864441078,0.40843149,111180.0,111170.0,0.88538]
[1756864441280,0.40843149,111180.0,111170.0,0.92066]
[1756864441582,0.93311689,111180.0,111170.0,0.88538]
[1756864441785,0.67077419,111180.0,111170.0,0.88538]
[1756864442172,0.67077419,111180.0,111170.0,0.92066]
[1756864442884,0.67077419,111180.0,111170.0,1.1830027]
[1756864443983,0.67077419,111180.0,111170.0,0.92066]
[1756864444175,0.67077419,111180.0,111170.0,1.1830027]
[1756864444377,0.40843149,111180.0,111170.0,1.1830027]
[1756864444578,0.36026758,111180.0,111170.0,1.1830027]
[1756864446788,0.40843149,111180.0,111170.0,1.1830027]
[1756864447186,0.37105149,111180.0,111170.0,1.1830027]
[1756864449082,0.40524149,111180.0,111170.0,1.1830027]
[1756864451591,0.37105149,111180.0,111170.0,1.1830027]
[1756864451891,0.32288758,111180.0,111170.0,1.1830027]
[1756864452091,0.32188758,111180.0,111170.0,1.1830027]
[1756864452683,0.31988758,111180.0,111170.0,1.1830027]
[1756864452883,0.35507758,111180.0,111170.0,1.1830027]
[1756864453592,0.61742028,111180.0,111170.0,0.3509627]
[1756864453891,0.35507758,111180.0,111170.0,1.1822427]
[1756864454089,0.61742028,111180.0,111170.0,1.1822427]
[1756864454891,0.35507758,111180.0,111170.0,1.1822427]
[1756864455082,0.61742028,111180.0,111170.0,1.1822427]
[1756864455592,0.61742028,111180.0,111170.0,0.3509627]
[1756864455781,0.61742028,111180.0,111170.0,1.1822427]
[1756864455983,0.61742028,111180.0,111170.0,0.3509627]
[1756864456183,0.61742028,111180.0,111170.0,1.1820427]
[1756864457390,0.95742028,111180.0,111170.0,1.1820427]
[1756864457591,0.63742028,111180.0,111170.0,1.1820427]
[1756864458397,0.61742028,111180.0,111170.0,1.1820427]
[1756864464097,0.35507758,111180.0,111170.0,1.1820427]
[1756864464299,0.61742028,111180.0,111170.0,1.1820427]
[1756864464599,0.35507758,111180.0,111170.0,1.1820427]
[1756864464897,0.61742028,111180.0,111170.0,1.1820427]
[1756864465295,0.35507758,111180.0,111170.0,1.1820427]
[1756864465493,0.58323028,111180.0,111170.0,1.1820427]
[1756864465693,0.53656028,111180.0,111170.0,1.1820427]
[1756864466700,0.27421758,111180.0,111170.0,1.1820427]
[1756864467097,0.53656028,111180.0,111170.0,1.1820427]
[1756864467700,0.27421758,111180.0,111170.0,1.1820427]
[1756864467900,0.53656028,111180.0,111170.0,1.1820427]
[1756864469006,0.61842028,111180.0,111170.0,1.1820427]
[1756864470504,0.66658419,111180.0,111170.0,1.1820427]
[1756864471004,0.40424149,111180.0,111170.0,0.3509627]
[1756864471303,0.40424149,111180.0,111170.0,1.1808827]
[1756864471499,0.40424149,111180.0,111170.0,0.91854]
[1756864473906,0.40424149,111180.0,111170.0,0.08862]
[1756864474108,0.40424149,111180.0,111170.0,0.91826]
[1756864474412,0.40424149,111180.0,111170.0,0.08862]
[1756864474703,0.77401446,111180.0,111170.0,0.9181]
[1756864475502,1.10401446,111180.0,111170.0,0.9181]
[1756864475703,0.75401446,111180.0,111170.0,0.9181]
[1756864477311,0.40424149,111180.0,111170.0,0.9181]
[1756864477612,0.75401446,111180.0,111170.0,0.9181]
[1756864478212,0.40424149,111180.0,111170.0,0.9181]
[1756864479213,0.75401446,111180.0,111170.0,0.9181]
[1756864479812,0.40424149,111180.0,111170.0,0.9181]
[1756864480014,0.75401446,111180.0,111170.0,0.9181]
[1756864482121,0.75401446,111180.0,111170.0,0.08862]
[1756864482317,0.84401446,111180.0,111170.0,0.08862]
[1756864482520,1.09401446,111180.0,111170.0,0.00549]
[1756864482722,1.11003344,111180.0,111170.0,0.00549]
[1756864482920,1.11003344,111180.0,111170.0,0.05181]
[1756864483218,1.04585055,111180.0,111170.0,0.05181]
[1756864484123,1.0943182,111180.0,111170.0,0.05181]
[1756864485025,0.7843182,111180.0,111170.0,0.08803]
[1756864485626,0.18454523,111180.0,111170.0,0.08803]
[1756864485923,0.18454523,111180.0,111170.0,0.43780297]
[1756864486223,0.18454523,111180.0,111170.0,0.08803]
[1756864491623,0.16454523,111180.0,111170.0,0.08803]
[1756864495824,0.16454523,111180.0,111170.0,0.43780297]
[1756864496226,0.18026047,111180.0,111170.0,0.43780297]
[1756864497634,0.11607758,111180.0,111170.0,0.43780297]
[1756864498636,0.05754758,111180.0,111170.0,0.43780297]
[1756864498931,0.03421758,111180.0,111170.0,0.68780297]
[1756864499127,0.05057808,111180.0,111170.0,0.70914969]
[1756864499334,0.0021,111180.0,111170.0,0.81289719]
[1756864499535,0.02421758,111180.0,111170.0,0.72294969]
[1756864500431,0.02421758,111180.0,111170.0,0.81289719]
[1756864500635,0.02421758,111180.0,111170.0,0.54909719]
[1756864500837,0.02421758,111180.0,111170.0,0.79909719]
[1756864501038,0.02421758,111180.0,111170.0,1.12909719]
[1756864501439,0.0021,111180.0,111170.0,1.12909719]
[1756864501634,0.0021,111180.0,111170.0,1.95809719]
[1756864505945,0.0021,111180.0,111170.0,1.12909719]
[1756864506246,0.0021,111180.0,111170.0,1.95805719]
[1756864507345,0.0001,111200.0,111190.0,0.08254]
[1756864507543,0.08124,111220.0,111210.0,0.04632]
[1756864507744,0.10306188,111220.0,111210.0,1.26183297]
[1756864508740,0.10306188,111220.0,111210.0,1.26632297]
[1756864509043,0.11006188,111220.0,111210.0,1.26732297]
[1756864509744,0.11006188,111220.0,111210.0,1.26832297]
[1756864509948,0.11506188,111220.0,111210.0,1.26832297]
[1756864510836,0.08093188,111220.0,111210.0,0.91855]
[1756864511043,0.012,111220.0,111210.0,1.26832297]
[1756864511237,0.012,111220.0,111210.0,1.53212297]
[1756864511549,0.012,111220.0,111210.0,1.55304423]
[1756864511952,0.012,111220.0,111210.0,1.58304423]
[1756864512345,0.005,111220.0,111210.0,1.58204423]
[1756864512544,0.01,111220.0,111210.0,1.58304423]
[1756864512743,0.01,111220.0,111210.0,1.67295933]
[1756864512946,0.005,111220.0,111210.0,1.92195933]
[1756864513150,0.008,111220.0,111210.0,2.00915933]
[1756864514251,0.0001,111240.0,111230.0,0.1726389]
[1756864514446,0.08193,111260.0,111250.0,0.08274]
[1756864514652,0.10368913,111260.0,111250.0,1.27624297]
[1756864515657,0.35368913,111260.0,111250.0,1.27624297]
[1756864516059,0.35868913,111260.0,111250.0,1.27724297]
[1756864516657,0.36368913,111260.0,111250.0,1.27824297]
[1756864517058,0.36368913,111260.0,111250.0,0.44896297]
[1756864517260,0.36368913,111260.0,111250.0,1.24271297]
[1756864517460,0.36368913,111260.0,111250.0,1.26383297]
[1756864517660,0.36368913,111260.0,111250.0,0.91402]
[1756864517958,0.36368913,111260.0,111250.0,1.26379297]
[1756864518155,0.36368913,111260.0,111250.0,0.04751]
[1756864518363,0.36368913,111260.0,111250.0,0.45899]
[1756864518662,0.36368913,111260.0,111250.0,0.49622]
[1756864518957,0.36368913,111260.0,111250.0,0.87679]
[1756864519357,0.36368913,111260.0,111250.0,1.22656297]
[1756864519558,0.36368913,111260.0,111250.0,1.26379297]
[1756864519758,0.36368913,111260.0,111250.0,0.91402]
[1756864520563,0.36368913,111260.0,111250.0,0.08474]
[1756864520756,0.36368913,111260.0,111250.0,1.26383297]
[1756864520959,0.7134621,111260.0,111250.0,0.002]
[1756864521264,1.10194018,111260.0,111250.0,0.002]
[1756864521659,0.01166,111250.0,111240.0,0.1084947]
[1756864521863,0.8051221,111250.0,111240.0,0.1084947]
[1756864522064,1.10360018,111250.0,111240.0,0.1084947]
[1756864522260,1.10360018,111250.0,111240.0,0.0001347]
[1756864522858,1.11060018,111250.0,111240.0,0.0001347]
[1756864523462,1.07598018,111250.0,111220.0,0.38700297]
[1756864523666,0.08183,111240.0,111230.0,0.34956]
[1756864523864,0.10368913,111240.0,111230.0,0.34956]
[1756864524065,0.10368913,111240.0,111230.0,0.37242]
[1756864524663,0.10368913,111240.0,111230.0,0.4323]
[1756864525568,0.10668913,111240.0,111230.0,0.4323]
[1756864526368,0.10968913,111240.0,111230.0,0.4323]
[1756864526566,0.10978913,111240.0,111230.0,0.4323]
[1756864528072,0.15826721,111240.0,111230.0,0.4323]
[1756864529675,0.15826721,111240.0,111230.0,0.08274]
[1756864529877,0.50804018,111240.0,111230.0,0.04551]
[1756864530076,0.50804018,111240.0,111230.0,0.08274]
[1756864530377,0.15826721,111240.0,111230.0,0.08274]
[1756864531169,0.10978913,111240.0,111230.0,0.08274]
[1756864531570,0.10978913,111240.0,111230.0,0.34929168]
[1756864531971,0.37185081,111240.0,111230.0,0.34929168]
[1756864532275,0.10978913,111240.0,111230.0,0.34929168]
[1756864532575,0.37185081,111240.0,111230.0,0.34929168]
[1756864532976,0.37185081,111240.0,111230.0,1.18045168]
[1756864533175,0.4360337,111240.0,111230.0,1.18045168]
[1756864533476,0.4360337,111240.0,111230.0,0.34929168]
[1756864535175,0.4560337,111240.0,111230.0,0.34929168]
[1756864535678,0.4360337,111240.0,111230.0,0.34929168]
[1756864536180,0.4360337,111240.0,111230.0,0.08723]
[1756864536181,1.02223997,111240.0,111230.0,0.08723]
[1756864536475,0.95391249,111240.0,111230.0,0.08723]
[1756864536674,1.01809538,111240.0,111230.0,0.05]
[1756864536874,1.26809538,111240.0,111230.0,0.05]
[1756864537074,1.26809538,111240.0,111230.0,0.02735]
[1756864537274,1.26809538,111240.0,111230.0,0.00449]
[1756864537476,1.25809538,111240.0,111230.0,0.05]
[1756864537971,0.94809538,111240.0,111230.0,0.05]
[1756864538177,1.30809538,111240.0,111230.0,0.05]
[1756864538681,0.96809538,111240.0,111230.0,0.05]
[1756864538881,0.94809538,111240.0,111230.0,0.05]
[1756864539178,1.30809538,111240.0,111230.0,0.08735]
[1756864540383,0.99391249,111240.0,111230.0,0.05]
[1756864540584,1.30809538,111240.0,111230.0,0.00449]
[1756864540974,1.57015706,111240.0,111230.0,0.00449]
[1756864541175,1.30809538,111240.0,111230.0,0.00449]
[1756864541377,1.40362558,111240.0,111230.0,0.00449]
[1756864542184,1.68173298,111240.0,111220.0,0.0001]
[1756864542384,0.672022,111230.0,111220.0,0.0001]
[1756864542575,1.0897711,111230.0,111210.0,0.0001]
[1756864542771,0.67201855,111220.0,111210.0,0.0001]
[1756864543083,1.07397768,111220.0,111200.0,0.03745]
[1756864543287,0.13176762,111210.0,111200.0,0.08497]
[1756864543476,0.41578843,111210.0,111200.0,0.34693168]
[1756864544281,0.41578843,111210.0,111200.0,0.08487]
[1756864544485,0.41578843,111210.0,111200.0,0.34693168]
[1756864544986,0.4249092,111210.0,111200.0,0.34693168]
[1756864545190,0.41578843,111210.0,111200.0,0.34993168]
[1756864545687,0.41578843,111210.0,111200.0,1.17773168]
[1756864545891,0.41678843,111210.0,111200.0,1.17773168]
[1756864546388,0.15472675,111210.0,111200.0,1.17773168]
[1756864546686,0.41678843,111210.0,111200.0,1.17773168]
[1756864547289,0.41678843,111210.0,111200.0,1.17673168]
[1756864547485,0.15572675,111210.0,111200.0,1.17673168]
[1756864547681,0.41778843,111210.0,111200.0,0.91467]
[1756864547882,0.41778843,111210.0,111200.0,1.17673168]
[1756864548387,0.36948081,111210.0,111200.0,1.17673168]
[1756864550895,0.36948081,111210.0,111200.0,1.19154168]
[1756864552794,0.36948081,111210.0,111200.0,0.92948]
[1756864552995,0.36948081,111210.0,111200.0,1.19154168]
[1756864554096,0.10741913,111210.0,111200.0,1.19154168]
[1756864554500,0.36948081,111210.0,111200.0,1.19154168]
[1756864554891,0.36948081,111210.0,111200.0,0.92948]
[1756864555094,0.36948081,111210.0,111200.0,1.19154168]
[1756864555697,0.36948081,111210.0,111200.0,0.92948]
[1756864555898,0.36948081,111210.0,111200.0,1.19154168]
[1756864557009,0.10741913,111210.0,111200.0,1.19154168]
[1756864557294,0.36948081,111210.0,111200.0,1.19154168]
[1756864557697,0.10741913,111210.0,111200.0,1.19154168]
[1756864557899,0.36948081,111210.0,111200.0,1.19154168]
[1756864558801,0.10741913,111210.0,111200.0,1.19154168]
[1756864558994,0.36948081,111210.0,111200.0,1.19154168]
[1756864560099,0.10741913,111210.0,111200.0,1.19154168]
[1756864560300,0.36948081,111210.0,111200.0,1.19154168]
[1756864562903,0.36948081,111210.0,111200.0,0.91407]
[1756864563102,0.75778843,111210.0,111200.0,0.08487]
[1756864563403,0.75778843,111210.0,111200.0,0.91419]
[1756864563702,0.73778843,111210.0,111200.0,0.91419]
[1756864564002,0.47572675,111210.0,111200.0,0.91419]
[1756864564195,0.73778843,111210.0,111200.0,0.91419]
[1756864564395,0.41778843,111210.0,111200.0,0.929]
[1756864565804,0.75778843,111210.0,111200.0,0.929]
[1756864566010,0.75778843,111210.0,111200.0,0.91419]
[1756864566716,0.49572675,111210.0,111200.0,0.91419]
[1756864567002,0.75778843,111210.0,111200.0,0.91419]
[1756864567706,0.75778843,111210.0,111200.0,0.929]
[1756864568000,0.41778843,111210.0,111200.0,0.929]
[1756864568200,0.41778843,111210.0,111200.0,1.19106168]
[1756864568400,0.41778843,111210.0,111200.0,0.929]
[1756864568599,0.41778843,111210.0,111200.0,1.19106168]
[1756864569003,0.52572675,111210.0,111200.0,1.19106168]
[1756864569204,0.78778843,111210.0,111200.0,0.929]
[1756864569395,0.41778843,111210.0,111200.0,0.929]
[1756864570209,0.41778843,111210.0,111200.0,1.19106168]
[1756864574806,0.15572675,111210.0,111200.0,1.19106168]
[1756864575206,0.41778843,111210.0,111200.0,1.19106168]
[1756864575699,0.07226675,111210.0,111200.0,1.45312336]
[1756864576097,0.33432843,111210.0,111200.0,1.19106168]
[1756864576295,0.350456,111210.0,111200.0,1.19106168]
[1756864576902,0.349456,111210.0,111200.0,1.19106168]
[1756864577302,0.348456,111210.0,111200.0,1.19106168]
[1756864577503,0.349456,111210.0,111200.0,1.19106168]
[1756864578209,0.350456,111210.0,111200.0,1.19106168]
[1756864578406,0.397136,111210.0,111200.0,0.929]
[1756864578708,0.397136,111210.0,111200.0,1.19106168]
[1756864578709,0.08839432,111210.0,111200.0,1.19106168]
[1756864579003,0.350456,111210.0,111200.0,1.19106168]